bitfinex/quotes_ETHUSD_20230111
["timestamp","ask_amount","ask_price","bid_price","bid_amount"]
[1673409158761,0.02474271,1330.7,1330.6,25.73312453]
[1673409158935,0.02474271,1330.7,1330.6,28.49655395]
[1673409159729,0.02474271,1330.7,1330.6,30.74875493]
[1673409159915,0.02474271,1330.7,1330.6,30.75075493]
[1673409160459,0.02474271,1330.7,1330.6,28.49655395]
[1673409160982,0.02474271,1330.7,1330.6,30.75075493]
[1673409161720,0.02474271,1330.7,1330.6,38.26615493]
[1673409167873,0.02474271,1330.7,1330.6,30.75075493]
[1673409168204,0.02474271,1330.7,1330.6,27.98732551]
[1673409169288,0.02474271,1330.7,1330.6,30.75075493]
[1673409170342,0.02474271,1330.7,1330.6,28.49655395]
[1673409170502,0.02474271,1330.7,1330.6,30.75075493]
[1673409171024,0.02474271,1330.7,1330.6,28.49655395]
[1673409171483,0.02474271,1330.7,1330.6,38.26615493]
[1673409173905,0.02474271,1330.7,1330.6,30.75075493]
[1673409174227,0.02183202,1330.7,1330.6,30.75075493]
[1673409178864,0.02183202,1330.7,1330.6,29.06010419]
[1673409179384,0.02183202,1330.7,1330.6,36.57550419]
[1673409180105,0.02183202,1330.7,1330.6,38.26585717]
[1673409180291,0.02183202,1330.7,1330.6,29.06010419]
[1673409180520,0.02183202,1330.7,1330.6,27.98703088]
[1673409180710,0.02183202,1330.7,1330.6,30.7504603]
[1673409183584,0.02183202,1330.7,1330.6,23.2350603]
[1673409184169,0.02183202,1330.7,1330.6,30.7504603]
[1673409186692,0.02183202,1330.7,1330.6,38.2658603]
[1673409189245,0.02183202,1330.7,1330.6,36.57550419]
[1673409189440,0.02183202,1330.7,1330.6,38.26606758]
[1673409189876,0.02183202,1330.7,1330.6,30.75066758]
[1673409191259,0.02183202,1330.7,1330.6,29.06010419]
[1673409193362,0.02183202,1330.7,1330.6,29.05614548]
[1673409194782,0.02183202,1330.7,1330.6,30.74671507]
[1673409197094,0.02183202,1330.7,1330.6,36.57154548]
[1673409199409,0.02183202,1330.7,1330.6,39.37960488]
[1673409199883,0.02183202,1330.7,1330.6,36.57154548]
[1673409200188,0.02183202,1330.7,1330.6,39.37960488]
[1673409200354,0.02183202,1330.7,1330.6,31.86420488]
[1673409200562,0.02183202,1330.7,1330.6,39.37960488]
[1673409201643,0.02183202,1330.7,1330.6,31.86420488]
[1673409203184,0.02183202,1330.7,1330.6,29.05614548]
[1673409206503,0.02183202,1330.7,1330.6,36.57154548]
[1673409208289,0.02183202,1330.7,1330.6,39.37960488]
[1673409209811,0.02183202,1330.7,1330.6,36.57154548]
[1673409210014,0.02183202,1330.7,1330.6,29.05614548]
[1673409211277,0.02183202,1330.7,1330.6,36.57154548]
[1673409214379,0.02183202,1330.7,1330.6,29.05614548]
[1673409214793,0.02183202,1330.7,1330.6,31.86420488]
[1673409215934,0.0184241,1330.7,1330.6,39.37960488]
[1673409227370,0.0184241,1330.7,1330.6,31.86420488]
[1673409227878,0.0184241,1330.7,1330.6,39.37960488]
[1673409228316,0.0184241,1330.7,1330.6,36.57154548]
[1673409228525,0.0184241,1330.7,1330.6,39.37960488]
[1673409231711,0.0184241,1330.7,1330.6,37.1254039]
[1673409231880,0.0184241,1330.7,1330.6,39.37890527]
[1673409234389,0.0184241,1330.7,1330.6,31.86350527]
[1673409235136,0.0184241,1330.7,1330.6,29.6100039]
[1673409236642,0.0184241,1330.7,1330.6,37.1254039]
[1673409238655,0.01640585,1330.7,1330.6,37.1254039]
[1673409240076,0.01640585,1330.7,1330.6,39.3790336]
[1673409240277,0.01640585,1330.7,1330.6,39.37903973]
[1673409246532,0.01640585,1330.7,1330.6,37.1254039]
[1673409246968,0.01640585,1330.7,1330.6,29.6100039]
[1673409247183,0.01640585,1330.7,1330.6,37.1254039]
[1673409247879,0.01640585,1330.7,1330.6,29.6100039]
[1673409248111,0.01640585,1330.7,1330.6,29.10031328]
[1673409248297,0.01640585,1330.7,1330.6,31.8637427]
[1673409249289,0.01640585,1330.7,1330.6,39.3791427]
[1673409250379,0.01640585,1330.7,1330.6,37.1254039]
[1673409250753,0.01640585,1330.7,1330.6,31.86375049]
[1673409252846,0.01640585,1330.7,1330.6,39.37915049]
[1673409255667,0.01640585,1330.7,1330.6,36.57109109]
[1673409256231,0.01640585,1330.7,1330.6,39.37915049]
[1673409256399,0.01640585,1330.7,1330.6,29.05569109]
[1673409256763,0.01640585,1330.7,1330.6,39.37915049]
[1673409257343,0.01640585,1330.7,1330.6,31.86375049]
[1673409258485,0.01640585,1330.7,1330.6,39.37915049]
[1673409258941,0.01640585,1330.7,1330.6,39.37715049]
[1673409259116,0.01640585,1330.7,1330.6,39.37915049]
[1673409259327,0.01381933,1330.7,1330.6,39.37915049]
[1673409259587,0.01381933,1330.7,1330.6,36.57109109]
[1673409259959,0.01381933,1330.7,1330.6,21.54029109]
[1673409260174,0.01381933,1330.7,1330.6,26.29226167]
[1673409260430,0.01381933,1330.7,1330.6,29.05569109]
[1673409260829,0.01381933,1330.7,1330.6,39.37915049]
[1673409262589,0.01381933,1330.7,1330.6,37.1254039]
[1673409266935,0.07700481,1330.8,1330.7,2.5132839]
[1673409267260,0.07700481,1330.8,1330.7,101.9515047]
[1673409267473,0.07700481,1330.8,1330.7,104.78093412]
[1673409268056,0.07700481,1330.8,1330.7,107.58899352]
[1673409268581,0.07700481,1330.8,1330.7,104.78093412]
[1673409270617,0.07700481,1330.8,1330.7,106.47047029]
[1673409271149,0.07700481,1330.8,1330.7,104.78093412]
[1673409271309,0.07700481,1330.8,1330.7,81.42592295]
[1673409271521,0.07700481,1330.8,1330.7,95.32882213]
[1673409271777,0.07700481,1330.8,1330.7,101.71724712]
[1673409272202,0.07700481,1330.8,1330.7,35.73893402]
[1673409272365,0.07700481,1330.8,1330.7,32.9755046]
[1673409275616,0.07700481,1330.8,1330.7,17.9458246]
[1673409275874,0.07700481,1330.8,1330.7,18.68756022]
[1673409276245,0.07700481,1330.8,1330.7,26.20240022]
[1673409276789,0.07700481,1330.8,1330.7,28.96582964]
[1673409277298,0.07700481,1330.8,1330.7,37.04435664]
[1673409277511,0.07700481,1330.8,1330.7,39.85241604]
[1673409278909,0.07700481,1330.8,1330.7,37.04435664]
[1673409279295,0.07700481,1330.8,1330.7,38.73366867]
[1673409279954,0.07700481,1330.8,1330.7,37.04435664]
[1673409280146,0.07700481,1330.8,1330.7,35.9702514]
[1673409280374,0.07700481,1330.8,1330.7,38.73368082]
[1673409280607,0.07700481,1330.8,1330.7,39.85241604]
[1673409282233,0.07700481,1330.8,1330.7,37.08898662]
[1673409282448,0.07700481,1330.8,1330.7,39.85241604]
[1673409282764,0.07700481,1330.8,1330.7,37.04435664]
[1673409283334,0.07700481,1330.8,1330.7,39.85241604]
[1673409286489,0.07700481,1330.8,1330.7,37.08741381]
[1673409286701,0.07700481,1330.8,1330.7,39.85084323]
[1673409287277,0.07700481,1330.8,1330.7,44.54080115]
[1673409287488,0.07700481,1330.8,1330.7,39.85084323]
[1673409289213,0.07347335,1330.8,1330.7,39.85084323]
[1673409290463,0.08834168,1330.9,1330.8,2.5699685]
[1673409290793,0.08834168,1330.9,1330.8,24.9489838]
[1673409290967,0.08834168,1330.9,1330.8,27.77841322]
[1673409291183,0.08834168,1330.9,1330.8,35.29268322]
[1673409293505,0.08834168,1330.9,1330.8,32.79268322]
[1673409295836,0.08834168,1330.9,1330.8,33.91815139]
[1673409296056,0.08834168,1330.9,1330.8,30.0292538]
[1673409296865,0.08834168,1330.9,1330.8,29.4664855]
[1673409299158,0.08834168,1330.9,1330.8,31.15476893]
[1673409299373,0.08834168,1330.9,1330.8,29.4664855]
[1673409299733,0.08834168,1330.9,1330.8,31.15476893]
[1673409301303,0.08834168,1330.9,1330.8,32.28029838]
[1673409303047,0.08834168,1330.9,1330.8,35.0437278]
[1673409303773,0.08834168,1330.9,1330.8,9.6875268]
[1673409303996,0.08834168,1330.9,1330.8,6.92409738]
[1673409304657,0.08834168,1330.9,1330.8,8.61238081]
[1673409305470,0.08834168,1330.9,1330.8,16.12665081]
[1673409305682,0.08834168,1330.9,1330.8,15.0007138]
[1673409306985,0.08834168,1330.9,1330.8,22.5149838]
[1673409307291,0.08834168,1330.9,1330.8,30.0292538]
[1673409307536,0.08834168,1330.9,1330.8,25.27841322]
[1673409307685,0.08834168,1330.9,1330.8,22.5149838]
[1673409312957,0.08834168,1330.9,1330.8,24.76602838]
[1673409313126,0.08834168,1330.9,1330.8,22.5149838]
[1673409313547,0.08834168,1330.9,1330.8,24.76602838]
[1673409313762,0.08834168,1330.9,1330.8,22.5149838]
[1673409313987,0.08500694,1330.9,1330.8,22.5149838]
[1673409314381,0.08500694,1330.9,1330.8,24.76602838]
[1673409315066,0.08500694,1330.9,1330.8,22.5149838]
[1673409316853,0.08500694,1330.9,1330.8,24.76602838]
[1673409317799,0.08500694,1330.9,1330.8,22.5149838]
[1673409318380,0.08500694,1330.9,1330.8,24.76602838]
[1673409318643,0.08500694,1330.9,1330.8,22.5149838]
[1673409318803,0.08500694,1330.9,1330.8,24.76602838]
[1673409319472,0.08500694,1330.9,1330.8,22.5149838]
[1673409319662,0.08500694,1330.9,1330.8,17.25175838]
[1673409319871,0.08500694,1330.9,1330.8,15.0007138]
[1673409320796,0.08500694,1330.9,1330.8,17.25175838]
[1673409321007,0.08500694,1330.9,1330.8,15.0007138]
[1673409321252,0.08500694,1330.9,1330.8,17.25175838]
[1673409321579,0.08500694,1330.9,1330.8,24.76602838]
[1673409321768,0.08500694,1330.9,1330.8,25.77120587]
[1673409322380,0.08500694,1330.9,1330.8,23.00777645]
[1673409322594,0.08500694,1330.9,1330.8,17.18319861]
[1673409323874,0.08500694,1330.9,1330.8,24.69746861]
[1673409332185,0.08500694,1330.9,1330.8,23.00777645]
[1673409333295,0.08500694,1330.9,1330.8,24.69742603]
[1673409338393,0.08500694,1330.9,1330.8,23.00777645]
[1673409338549,0.08500694,1330.9,1330.8,24.69747269]
[1673409340652,0.08500694,1330.9,1330.8,14.93215811]
[1673409340918,0.08500694,1330.9,1330.8,17.18320269]
[1673409342291,0.08500694,1330.9,1330.8,24.69747269]
[1673409343273,0.08500694,1330.9,1330.8,17.18320269]
[1673409343960,0.08500694,1330.9,1330.8,24.69747269]
[1673409346124,0.08500694,1330.9,1330.8,23.00777645]
[1673409346332,0.08500694,1330.9,1330.8,24.69792788]
[1673409346763,0.08500694,1330.9,1330.8,27.4613573]
[1673409347171,0.08500694,1330.9,1330.8,24.69792788]
[1673409349614,0.08500694,1330.9,1330.8,23.00777645]
[1673409351001,0.08500694,1330.9,1330.8,8.545245]
[1673409351221,0.08500694,1330.9,1330.8,8.543245]
[1673409351533,0.08500694,1330.9,1330.8,6.85505249]
[1673409351722,1.20892773,1330.9,1330.8,6.85505249]
[1673409352062,0.08500694,1330.9,1330.8,6.85505249]
[1673409352246,1.20892773,1330.9,1330.8,6.85505249]
[1673409352440,0.08500694,1330.9,1330.8,6.85505249]
[1673409354630,0.08500694,1330.9,1330.8,14.36932249]
[1673409354886,0.08500694,1330.9,1330.8,13.24246187]
[1673409355096,0.08500694,1330.9,1330.8,14.36932249]
[1673409355416,0.08500694,1330.9,1330.8,21.88359249]
[1673409357265,0.08500694,1330.9,1330.8,20.75673187]
[1673409358047,0.08500694,1330.9,1330.8,21.88359249]
[1673409358230,0.08500694,1330.9,1330.8,20.75673187]
[1673409365082,0.08500694,1330.9,1330.8,23.52016129]
[1673409366898,0.08500694,1330.9,1330.8,20.75673187]
[1673409368097,0.08500694,1330.9,1330.8,20.75473187]
[1673409368305,0.08500694,1330.9,1330.8,20.75673187]
[1673409368718,16.30407863,1330.9,1330.8,0.06262316]
[1673409368929,35.81099646,1330.9,1330.7,0.74173562]
[1673409369141,4.50949693,1330.8,1330.7,0.74173562]
[1673409369458,12.02376693,1330.8,1330.7,0.74173562]
[1673409369684,12.08941663,1330.8,1330.7,0.74173562]
[1673409369899,8.16928027,1330.8,1330.7,0.74173562]
[1673409371139,4.57514663,1330.8,1330.7,0.74173562]
[1673409371350,3.386,1330.8,1330.7,0.74173562]
[1673409377756,3.386,1330.8,1330.7,8.25657562]
[1673409378000,3.386,1330.8,1330.7,8.32119878]
[1673409378194,2.97215357,1330.9,1330.7,34.11885942]
[1673409378411,2.97215357,1330.9,1330.8,35.35176058]
[1673409378412,0.08500694,1330.9,1330.8,35.35176058]
[1673409378596,0.08428921,1331.0,1330.9,0.0846143]
[1673409378827,0.08428921,1331.0,1330.9,34.68255821]
[1673409379042,0.08428921,1331.0,1330.9,34.74718137]
[1673409379282,0.08428921,1331.0,1330.9,35.49613679]
[1673409379447,0.08428921,1331.0,1330.9,36.08995651]
[1673409379868,0.08428921,1331.0,1330.9,30.80617887]
[1673409381235,0.08428921,1331.0,1330.9,38.31988887]
[1673409381866,0.08428921,1331.0,1330.9,41.13981585]
[1673409382110,0.08428921,1331.0,1330.9,41.13981622]
[1673409382333,0.08428921,1331.0,1330.9,41.13975061]
[1673409382773,0.08428921,1331.0,1330.9,41.13975048]
[1673409386382,0.08428921,1331.0,1330.9,39.45393469]
[1673409386575,0.08428921,1331.0,1330.9,40.01466673]
[1673409388512,20.19724971,1331.3,1331.0,2.5]
[1673409388776,20.19724971,1331.3,1331.2,7.51201]
[1673409388960,0.06564971,1331.3,1331.2,7.57663316]
[1673409389305,1e-08,1331.3,1331.2,7.57663316]
[1673409405836,1e-08,1331.3,1331.2,18.8863038]
[1673409406049,1e-08,1331.3,1331.2,26.3983138]
[1673409408519,0.07443953,1331.4,1331.3,0.00199999]
[1673409408955,0.07443953,1331.4,1331.3,15.02489999]
[1673409409164,0.07443953,1331.4,1331.3,15.08952315]
[1673409409373,0.07443953,1331.4,1331.3,22.60097315]
[1673409411139,0.07443953,1331.4,1331.3,26.39863379]
[1673409411493,0.07443953,1331.4,1331.3,29.39863379]
[1673409413389,0.07443953,1331.4,1331.3,38.74687432]
[1673409414020,0.07443953,1331.4,1331.3,34.61764844]
[1673409414327,0.07443953,1331.4,1331.3,39.30760636]
[1673409414520,0.07443953,1331.4,1331.3,34.61764844]
[1673409415502,0.07443953,1331.4,1331.3,35.17977801]
[1673409415890,0.07443953,1331.4,1331.3,34.0569164]
[1673409416086,0.07443953,1331.4,1331.3,35.17977801]
[1673409417236,0.07443953,1331.4,1331.3,36.86359381]
[1673409418228,0.07443953,1331.4,1331.3,35.17777802]
[1673409418833,0.07443953,1331.4,1331.3,36.86359381]
[1673409419482,0.07443953,1331.4,1331.3,35.17777802]
[1673409424222,0.07443953,1331.4,1331.3,36.86359381]
[1673409424426,0.07443953,1331.4,1331.3,35.17777802]
[1673409428702,5.12255678,1331.5,1331.4,2.5]
[1673409428859,5.12255678,1331.5,1331.4,41.6936916]
[1673409429201,5.12255678,1331.5,1331.4,39.25831476]
[1673409430623,5.12255678,1331.5,1331.4,42.05317769]
[1673409436210,5.12255678,1331.5,1331.4,43.1760393]
[1673409440616,5.12255678,1331.5,1331.4,42.05317154]
[1673409440941,5.12255678,1331.5,1331.4,39.25831476]
[1673409441367,5.12255678,1331.5,1331.4,42.05319992]
[1673409441811,5.12255678,1331.5,1331.4,39.25831476]
[1673409442714,5.12255678,1331.5,1331.4,11.06462316]
[1673409442715,8.33640864,1331.5,1331.4,11.06462316]
[1673409443135,8.33640864,1331.5,1331.4,18.57551316]
[1673409445234,8.33640864,1331.5,1331.4,26.08640316]
[1673409446329,8.33640864,1331.5,1331.4,33.59729316]
[1673409446938,8.33640864,1331.5,1331.4,26.08640316]
[1673409449377,9.45990557,1331.5,1331.4,26.08640316]
[1673409449915,8.33640864,1331.5,1331.4,26.08640316]
[1673409450131,9.45990557,1331.5,1331.4,26.08640316]
[1673409451232,9.45990557,1331.5,1331.4,23.08640316]
[1673409451918,7.76590557,1331.5,1331.4,15.57551316]
[1673409452128,7.76590557,1331.5,1331.4,23.08640316]
[1673409452443,6.64240864,1331.5,1331.4,23.08640316]
[1673409453390,7.76590557,1331.5,1331.4,23.08640316]
[1673409457378,7.76590557,1331.5,1331.4,15.57551316]
[1673409459561,6.64240864,1331.5,1331.4,15.57551316]
[1673409460233,7.76590557,1331.5,1331.4,15.57551316]
[1673409460981,9.44790557,1331.5,1331.4,0.06073991]
[1673409461301,11.13334647,1331.5,1331.4,0.002]
[1673409461761,9.44790557,1331.5,1331.4,0.002]
[1673409462188,11.13334647,1331.5,1331.4,0.002]
[1673409462396,16.95822557,1331.5,1331.4,0.002]
[1673409462606,18.64366647,1331.5,1331.4,0.002]
[1673409462868,11.13334647,1331.5,1331.4,0.002]
[1673409463718,9.44790557,1331.5,1331.4,0.002]
[1673409465961,9.44790557,1331.5,1331.4,15.02378]
[1673409466222,8.32440864,1331.5,1331.4,15.08451991]
[1673409466386,8.32440864,1331.5,1331.4,0.06273991]
[1673409466601,8.32440864,1331.5,1331.3,23.08563991]
[1673409467675,8.32440864,1331.5,1331.3,15.57418991]
[1673409468116,9.44790557,1331.5,1331.3,8.06273991]
[1673409469330,8.32440864,1331.5,1331.3,8.06273991]
[1673409469546,9.44790557,1331.5,1331.3,8.06273991]
[1673409471762,1.697,1331.4,1331.3,8.06273991]
[1673409471986,1.697,1331.4,1331.3,12.92624159]
[1673409474645,1.697,1331.4,1331.3,11.06273991]
[1673409475548,1.697,1331.4,1331.3,12.92627961]
[1673409479469,1.697,1331.4,1331.3,20.43772961]
[1673409479783,1.697,1331.4,1331.3,21.56059122]
[1673409480373,1.697,1331.4,1331.3,14.04914122]
[1673409480906,1.697,1331.4,1331.3,21.56059122]
[1673409481748,7.93810724,1331.5,1331.3,23.24640701]
[1673409481974,12.08708945,1331.5,1331.4,1.8635397]
[1673409486039,12.08459604,1331.5,1331.4,1.8635397]
[1673409500260,12.08154251,1331.5,1331.4,1.8635397]
[1673409502444,10.39254251,1331.5,1331.4,1.8635397]
[1673409502986,12.07798341,1331.5,1331.4,1.8635397]
[1673409504195,12.07798341,1331.5,1331.3,12.18560152]
[1673409504424,7.9290012,1331.5,1331.3,12.18560152]
[1673409504748,7.8790012,1331.5,1331.3,12.18560152]
[1673409505708,7.8790012,1331.5,1331.4,1.86349054]
[1673409511496,6.75550427,1331.5,1331.3,19.69703152]
[1673409511708,1.12504149,1331.4,1331.3,19.69703152]
[1673409511941,7.88054576,1331.5,1331.3,21.56053144]
[1673409512160,7.88054576,1331.5,1331.3,19.69703152]
[1673409512670,7.88054576,1331.5,1331.4,1.86349621]
[1673409512886,7.88054576,1331.5,1331.3,19.69703152]
[1673409512887,12.13572308,1331.5,1331.3,19.69703152]
[1673409513099,7.88054576,1331.5,1331.4,1.86349473]
[1673409513485,6.75550427,1331.5,1331.3,19.69703152]
[1673409513699,1.12505015,1331.4,1331.3,19.69703152]
[1673409513920,10.38055442,1331.5,1331.3,21.56054072]
[1673409514140,7.88055442,1331.5,1331.4,1.8635092]
[1673409516729,6.19511352,1331.5,1331.4,1.8635092]
[1673409520612,7.88055442,1331.5,1331.4,1.8635092]
[1673409521241,6.19511352,1331.5,1331.4,1.8635092]
[1673409521667,7.88055442,1331.5,1331.4,1.8635092]
[1673409522399,6.19511352,1331.5,1331.4,1.8635092]
[1673409522611,7.88055442,1331.5,1331.4,1.8635092]
[1673409522938,6.19511352,1331.5,1331.4,28.19383984]
[1673409523165,5.07006337,1331.5,1331.4,34.06525715]
[1673409523389,5.07006337,1331.5,1331.4,36.86369775]
[1673409523710,5.07006337,1331.5,1331.4,35.73560038]
[1673409523869,5.07006337,1331.5,1331.4,35.73760038]
[1673409524648,5.07006337,1331.5,1331.4,35.1778964]
[1673409524869,5.07006337,1331.5,1331.4,20.1561164]
[1673409525020,5.07006337,1331.5,1331.4,24.87180156]
[1673409525231,5.07006337,1331.5,1331.4,17.36091156]
[1673409525451,5.07006337,1331.5,1331.4,20.1561164]
[1673409525695,5.07006337,1331.5,1331.4,17.36091156]
[1673409526230,5.07006337,1331.5,1331.4,9.85002156]
[1673409526537,6.19575232,1331.5,1331.4,20.1561164]
[1673409526755,6.19575232,1331.5,1331.4,17.36091156]
[1673409526911,6.19575232,1331.5,1331.4,9.85002156]
[1673409527384,6.19575232,1331.5,1331.4,8.72390975]
[1673409527994,6.19575232,1331.5,1331.4,4.92624911]
[1673409528207,6.19575232,1331.5,1331.4,4.8635092]
[1673409529796,6.19575232,1331.5,1331.4,12.3743992]
[1673409530016,5.07006337,1331.5,1331.4,21.07414092]
[1673409530181,5.07006337,1331.5,1331.4,23.86934576]
[1673409530398,5.07006337,1331.5,1331.4,21.07414092]
[1673409530835,5.07006337,1331.5,1331.4,13.56325092]
[1673409531432,5.07006337,1331.5,1331.4,21.07414092]
[1673409532851,5.07006337,1331.5,1331.4,23.86934576]
[1673409533021,4.9983908,1331.5,1331.4,21.07414092]
[1673409533379,4.9327411,1331.5,1331.4,21.07414092]
[1673409533542,2.94531209,1331.5,1331.4,22.75995671]
[1673409533956,2.94531209,1331.5,1331.4,21.6338449]
[1673409534202,2.94531209,1331.5,1331.4,22.75934382]
[1673409534740,2.94531209,1331.5,1331.4,32.94239554]
[1673409535059,2.94531209,1331.5,1331.4,35.73760038]
[1673409535218,2.94531209,1331.5,1331.4,37.98864496]
[1673409535641,2.94531209,1331.5,1331.4,37.99037058]
[1673409535903,2.94531209,1331.5,1331.4,36.30282917]
[1673409537114,2.94531209,1331.5,1331.4,37.98948164]
[1673409539209,2.94531209,1331.5,1331.4,35.73843706]
[1673409540419,2.94531209,1331.5,1331.4,36.86257299]
[1673409541461,2.94531209,1331.5,1331.4,35.17592052]
[1673409544209,2.94531209,1331.5,1331.4,36.86257299]
[1673409546524,2.94531209,1331.5,1331.4,35.73843706]
[1673409546712,2.94531209,1331.5,1331.4,37.98948164]
[1673409547309,2.94531209,1331.5,1331.4,35.73843706]
[1673409549939,2.94531209,1331.5,1331.4,35.17551085]
[1673409553837,2.94531209,1331.5,1331.4,5.84518021]
[1673409554073,10.05996567,1331.5,1331.4,0.06273991]
[1673409554301,25.14625537,1331.5,1331.2,1.12372626]
[1673409554491,25.14625537,1331.5,1331.2,2.98723529]
[1673409554492,32.85268262,1331.5,1331.2,2.98723529]
[1673409554811,7.51117,1331.4,1331.1,2.87311864]
[1673409555025,5.46438761,1331.3,1331.1,1.12372626]
[1673409555197,3.40188933,1331.3,1331.0,10.87311864]
[1673409555564,3.40188933,1331.3,1331.1,1.86370957]
[1673409555565,5.83623963,1331.3,1331.1,1.86370957]
[1673409555723,5.90188933,1331.3,1331.1,1.86370957]
[1673409556259,5.90188933,1331.3,1331.1,4.86370957]
[1673409556612,5.90188933,1331.3,1331.1,3.0]
[1673409556933,3.40188933,1331.3,1331.1,3.0]
[1673409557248,3.33623963,1331.3,1331.1,3.0]
[1673409557826,10.84771963,1331.3,1331.1,3.0]
[1673409558031,10.91336933,1331.3,1331.1,3.0]
[1673409558294,3.40188933,1331.3,1331.1,3.0]
[1673409558632,3.33234168,1331.3,1331.1,3.0]
[1673409559711,10.84385168,1331.3,1331.1,3.0]
[1673409559921,3.39799138,1331.3,1331.1,3.0]
[1673409560130,3.33234168,1331.3,1331.1,3.0]
[1673409561333,1.64223963,1331.3,1331.1,3.0]
[1673409561534,1.64223963,1331.3,1331.1,10.51239]
[1673409561890,26.27000323,1331.4,1331.1,6.86040055]
[1673409562024,25.70650323,1331.4,1331.1,6.86040055]
[1673409562232,29.47558384,1331.4,1331.1,5.85794475]
[1673409562500,33.21767323,1331.4,1331.1,5.85794475]
[1673409563041,1.694,1331.2,1331.1,3.06273991]
[1673409563331,16.71802,1331.2,1331.1,3.0]
[1673409563553,16.7836697,1331.2,1331.1,3.0]
[1673409564231,9.2716597,1331.2,1331.1,3.0]
[1673409564515,1.7596497,1331.2,1331.1,3.0]
[1673409564660,1.694,1331.2,1331.1,3.0]
[1673409564857,9.20601,1331.2,1331.1,3.0]
[1673409565226,9.2716597,1331.2,1331.1,3.0]
[1673409569419,16.7836697,1331.2,1331.1,3.0]
[1673409569633,16.7836697,1331.2,1331.0,0.06273991]
[1673409569634,16.7836697,1331.2,1331.0,3.06273991]
[1673409569969,16.7836697,1331.2,1331.0,3.0]
[1673409570141,16.7836697,1331.2,1331.0,5.77633923]
[1673409570356,16.7836697,1331.2,1331.0,5.83907914]
[1673409572078,15.0896697,1331.2,1331.0,5.83907914]
[1673409573135,0.0656497,1331.2,1331.0,5.83907914]
[1673409573441,34.8620797,1331.3,1331.0,5.83907914]
[1673409573665,39.88057506,1331.3,1331.0,5.83907914]
[1673409573876,24.85661506,1331.3,1331.0,5.83907914]
[1673409574043,10.3993497,1331.3,1331.1,1.86362252]
[1673409575136,10.3993497,1331.3,1331.0,33.29955604]
[1673409575281,10.3993497,1331.3,1331.1,1.86360077]
[1673409576359,10.3993497,1331.3,1331.0,25.78617604]
[1673409577172,10.3993497,1331.3,1331.1,1.86362354]
[1673409579109,17.9109497,1331.3,1331.1,1.86362354]
[1673409579335,17.9109497,1331.3,1331.0,18.2889138]
[1673409579485,10.3993497,1331.3,1331.1,1.86363998]
[1673409580353,17.9108197,1331.3,1331.1,1.86363998]
[1673409580963,10.3993497,1331.3,1331.1,1.86363998]
[1673409582224,10.3993497,1331.3,1331.1,13.17363062]
[1673409582431,10.3993497,1331.3,1331.1,6.63673978]
[1673409584248,10.3993497,1331.3,1331.1,7.76046604]
[1673409584637,10.3993497,1331.3,1331.2,1.86352233]
[1673409585300,17.9107997,1331.3,1331.1,7.76046604]
[1673409585629,10.3993497,1331.3,1331.1,7.76046604]
[1673409585849,17.9109597,1331.3,1331.1,7.76046604]
[1673409586319,17.9109597,1331.3,1331.1,6.63673978]
[1673409587278,17.9109597,1331.3,1331.1,7.76046604]
[1673409587489,17.9109597,1331.3,1331.1,6.63673978]
[1673409588761,25.4225697,1331.3,1331.1,6.63673978]
[1673409589402,38.24687597,1331.3,1331.1,0.05909207]
[1673409589589,38.24687597,1331.3,1331.0,69.03940517]
[1673409589940,38.24687597,1331.3,1331.0,72.83706581]
[1673409590680,38.24687597,1331.3,1331.0,73.96079207]
[1673409591276,38.24687597,1331.3,1331.1,1.86381747]
[1673409591941,39.93887597,1331.3,1331.1,1.86381747]
[1673409593308,38.81318702,1331.3,1331.1,4.64704655]
[1673409593462,39.93887597,1331.3,1331.1,5.77077281]
[1673409593668,39.93887597,1331.3,1331.1,5.83186488]
[1673409593913,39.93887597,1331.3,1331.2,1.86381747]
[1673409594590,40.63841865,1331.3,1331.1,2.84432115]
[1673409594806,1.12459388,1331.2,1331.0,81.96079207]
[1673409594964,1.12459388,1331.2,1331.1,1.86388285]
[1673409595178,5.51131281,1331.2,1331.1,1.86388285]
[1673409595446,13.08559312,1331.2,1331.1,1.86388285]
[1673409595814,13.08559312,1331.2,1331.1,1.86387019]
[1673409596292,11.96437863,1331.2,1331.1,4.64910201]
[1673409596592,11.96437863,1331.2,1331.1,7.64910201]
[1673409596806,11.96437863,1331.2,1331.1,7.71019408]
[1673409597022,4.45236863,1331.2,1331.1,8.89428111]
[1673409597192,25.61519616,1331.3,1331.1,8.89428111]
[1673409597409,23.78996702,1331.3,1331.2,1.86387019]
[1673409597736,13.45610702,1331.3,1331.2,1.86387019]
[1673409598342,13.45610702,1331.3,1331.1,8.15413718]
[1673409598546,20.96755702,1331.3,1331.1,8.15413718]
[1673409599923,20.96755702,1331.3,1331.1,7.03041092]
[1673409599924,21.10734003,1331.3,1331.1,7.03041092]
[1673409600538,22.79278093,1331.3,1331.1,7.03041092]
[1673409600806,21.10734003,1331.3,1331.1,7.03041092]
[1673409600970,22.79278093,1331.3,1331.1,7.03041092]
[1673409601394,15.28133093,1331.3,1331.1,7.03041092]
[1673409601607,5.94465702,1331.3,1331.1,8.15413718]
[1673409601821,7.5772997,1331.3,1331.1,7.02841092]
[1673409602124,15.0889497,1331.3,1331.1,7.03041092]
[1673409602319,22.6005997,1331.3,1331.1,7.03041092]
[1673409602534,24.2860406,1331.3,1331.1,7.03041092]
[1673409602740,24.2860406,1331.3,1331.1,4.2451791]
[1673409602741,26.53000805,1331.3,1331.1,4.2451791]
[1673409603005,4.1854409,1331.2,1331.1,1.18408703]
[1673409603213,17.52402,1331.2,1331.1,1.18408703]
[1673409603374,26.7986797,1331.2,1331.1,1.18408703]
[1673409603580,21.35345114,1331.2,1331.1,1.18408703]
[1673409603790,24.86612354,1331.2,1331.1,1.18408703]
[1673409604629,19.03955444,1331.2,1331.1,1.18408703]
[1673409604895,17.35411354,1331.2,1331.1,1.18408703]
[1673409605418,18.47772734,1331.2,1331.1,1.18408703]
[1673409605638,4.8132635,1331.2,1331.1,1.18408703]
[1673409605825,15.02402,1331.2,1331.1,1.18408703]
[1673409605998,15.0896697,1331.2,1331.1,3.0478867]
[1673409606695,7.5776597,1331.2,1331.1,1.18408703]
[1673409607204,7.5776597,1331.2,1331.1,3.0478865]
[1673409607698,7.5776597,1331.2,1331.1,1.18408703]
[1673409609399,10.18918494,1331.2,1331.1,1.18408703]
[1673409610822,10.18918494,1331.2,1330.9,20.98871135]
[1673409611029,15.0896697,1331.2,1331.0,1.86384638]
[1673409611238,15.0896697,1331.2,1331.0,4.64741722]
[1673409611923,15.0896697,1331.2,1331.0,5.77114348]
[1673409611924,0.0656497,1331.2,1331.0,5.77114348]
[1673409612151,7.51201,1331.2,1331.0,5.83223555]
[1673409612390,7.5776597,1331.2,1331.0,3.96838917]
[1673409612594,7.5776597,1331.2,1331.0,3.9072971]
[1673409612795,7.5776597,1331.2,1331.0,5.77111175]
[1673409613110,7.5776597,1331.2,1331.0,5.83220382]
[1673409613290,7.5776597,1331.2,1331.0,2.84466291]
[1673409613501,7.5776597,1331.2,1331.0,5.77110735]